bitfinex/quotes_BTCUSD_20250814
["timestamp","ask_amount","ask_price","bid_price","bid_amount"]
[1755180928369,1.05047615,117990.0,117980.0,0.17092025]
[1755180928611,0.88097026,117990.0,117980.0,0.17092025]
[1755180928803,0.88197026,117990.0,117980.0,0.17496025]
[1755180929002,0.87997026,117990.0,117980.0,0.17396025]
[1755180929183,0.87897026,117990.0,117980.0,0.17296025]
[1755180929387,0.87997026,117990.0,117980.0,0.17396025]
[1755180929591,1.04947615,117990.0,117980.0,0.17396025]
[1755180929836,1.05047615,117990.0,117980.0,0.17396025]
[1755180930039,1.05047615,117990.0,117980.0,0.17092025]
[1755180930040,0.22992325,117990.0,117980.0,0.17092025]
[1755180930242,0.22988325,117990.0,117980.0,0.17396025]
[1755180930381,0.39938914,117990.0,117980.0,0.0014]
[1755180930588,1.05357615,117990.0,117980.0,0.0014]
[1755180931837,1.08096936,117990.0,117980.0,0.0014]
[1755180932036,1.05357615,117990.0,117980.0,0.0014]
[1755180932393,0.25422914,117990.0,117980.0,0.17092025]
[1755180932599,1.05039615,117990.0,117980.0,0.17092025]
[1755180932822,0.39934914,117990.0,117980.0,0.17092025]
[1755180933261,0.25422914,117990.0,117980.0,0.17092025]
[1755180933467,0.08472325,117990.0,117980.0,0.17092025]
[1755180933706,0.22984325,117990.0,117980.0,0.17396025]
[1755180933870,0.22974119,117990.0,117980.0,0.17396025]
[1755180934029,0.08462119,117990.0,117980.0,0.17396025]
[1755180934405,0.22935127,117990.0,117980.0,0.17396025]
[1755180934817,0.08427127,117990.0,117980.0,0.17396025]
[1755180935019,0.000542,117990.0,117980.0,0.17396025]
[1755180935162,0.145622,117990.0,117980.0,0.17396025]
[1755180935500,0.1450388,117990.0,117980.0,0.17396025]
[1755180936283,0.1443098,117990.0,117980.0,0.17396025]
[1755180936465,0.21826214,118010.0,117990.0,0.16949489]
[1755180936664,1.04834178,118000.0,117990.0,0.16949489]
[1755180936869,1.04834178,118000.0,117980.0,0.17396025]
[1755180937075,1.49124178,118000.0,117990.0,0.16950589]
[1755180937282,0.25703958,118010.0,118000.0,0.16949152]
[1755180937283,0.03714692,118010.0,118000.0,0.16949152]
[1755180937497,0.03714692,118010.0,118000.0,0.17242152]
[1755180937708,0.14508942,118020.0,118010.0,0.16947716]
[1755180937915,0.22781267,118020.0,118010.0,0.17240716]
[1755180938350,4.942e-05,118020.0,118010.0,0.17240716]
[1755180938557,4.942e-05,118020.0,118010.0,0.31744716]
[1755180938800,4.942e-05,118020.0,118010.0,0.65744716]
[1755180939012,0.00104942,118020.0,118010.0,0.65744716]
[1755180939209,0.00104942,118020.0,118010.0,0.51240716]
[1755180939423,4.942e-05,118020.0,118010.0,0.51240716]
[1755180940654,0.00104942,118020.0,118010.0,0.51540716]
[1755180940850,0.00104942,118020.0,118010.0,0.51440716]
[1755180941465,4.942e-05,118020.0,118010.0,0.51240716]
[1755180941762,0.00104942,118020.0,118010.0,0.51440716]
[1755180942382,0.00104942,118020.0,118010.0,0.51540716]
[1755180942383,0.00204942,118020.0,118010.0,0.51540716]
[1755180942631,0.00204942,118020.0,118010.0,0.51247716]
[1755180942809,0.90528248,118020.0,118010.0,0.17247716]
[1755180943008,0.73581968,118020.0,118010.0,0.17247716]
[1755180943307,0.89822436,118020.0,118010.0,0.17247716]
[1755180943612,0.08477267,118020.0,118010.0,0.17247716]
[1755180943808,0.00204942,118020.0,118010.0,0.17247716]
[1755180944042,0.00204942,118020.0,118010.0,0.17540716]
[1755180944576,0.17151222,118020.0,118010.0,0.17247716]
[1755180944817,0.82576923,118020.0,118010.0,0.003]
[1755180945658,0.82576923,118020.0,118010.0,0.17247716]
[1755180946488,0.90849248,118020.0,118010.0,0.003]
[1755180947729,0.90849248,118020.0,118010.0,0.17247716]
[1755180947931,1.05016248,118020.0,118010.0,0.17247716]
[1755180948326,0.39911547,118020.0,118010.0,0.17247716]
[1755180948535,0.22965267,118020.0,118010.0,0.17247716]
[1755180948672,0.39911547,118020.0,118010.0,0.17247716]
[1755180948905,1.49306248,118020.0,118010.0,0.003]
[1755180949093,1.49627248,118020.0,118010.0,0.003]
[1755180950179,0.08477267,118020.0,118010.0,0.17247716]
[1755180950368,0.00204942,118020.0,118010.0,0.32024716]
[1755180952198,0.00204942,118020.0,118010.0,0.40297041]
[1755180953997,0.00204942,118020.0,118010.0,0.42041943]
[1755180954237,0.00204942,118020.0,118010.0,1.11705644]
[1755180954444,0.00204942,118020.0,118010.0,0.46600943]
[1755180954875,0.00104942,118020.0,118010.0,0.46400943]
[1755180955073,0.00104942,118020.0,118010.0,1.11505644]
[1755180955315,0.00204942,118020.0,118010.0,1.11805644]
[1755180955528,0.4429,118060.0,118050.0,0.16941973]
[1755180955752,0.4429838,118060.0,118050.0,0.16941973]
[1755180955967,0.4429838,118060.0,118050.0,0.17234973]
[1755180957426,0.4459838,118060.0,118050.0,0.17334973]
[1755180957742,0.4459838,118060.0,118050.0,0.18040841]
[1755180958167,0.4479838,118060.0,118050.0,0.18040841]
[1755180958364,0.4479838,118060.0,118050.0,0.17334973]
[1755180958789,0.4459838,118060.0,118050.0,0.17334973]
[1755180959054,0.4429838,118060.0,118050.0,0.17234973]
[1755180959465,0.4449838,118060.0,118050.0,0.17334973]
[1755180960403,0.4449838,118060.0,118050.0,0.51334973]
[1755180960609,0.0020838,118060.0,118050.0,1.31487354]
[1755180960817,0.0020838,118060.0,118050.0,1.34028054]
[1755180961030,0.0020838,118060.0,118050.0,0.68923353]
[1755180961384,0.0020838,118060.0,118050.0,0.62147998]
[1755180961826,0.0020838,118060.0,118050.0,0.77288453]
[1755180962051,0.0020838,118060.0,118050.0,0.78933355]
[1755180962272,8.38e-05,118060.0,118050.0,0.78933355]
[1755180962483,0.0010838,118060.0,118050.0,0.79033355]
[1755180962687,0.0010838,118060.0,118050.0,0.79133355]
[1755180964294,0.0010838,118060.0,118050.0,0.79129355]
[1755180964712,0.0010838,118060.0,118050.0,0.79337355]
[1755180966385,0.01897402,118100.0,118090.0,0.16936235]
[1755180966563,0.02146833,118100.0,118090.0,0.16936235]
[1755180967472,0.19080939,118100.0,118090.0,0.16936235]
[1755180967673,0.02746138,118100.0,118090.0,0.17036235]
[1755180968766,0.02525138,118100.0,118090.0,0.17334235]
[1755180969095,0.02525138,118100.0,118090.0,0.51647235]
[1755180969287,0.02225138,118100.0,118090.0,0.51547235]
[1755180969425,0.01625138,118100.0,118090.0,0.52137415]
[1755180969617,0.01825138,118100.0,118090.0,0.6040974]
[1755180969816,0.02025138,118100.0,118090.0,0.6050974]
[1755180970495,0.02023679,118100.0,118090.0,0.6050974]
[1755180970688,0.01823679,118100.0,118090.0,1.27259343]
[1755180970927,0.0002,118120.0,118110.0,0.16933367]
[1755180971048,0.01608871,118120.0,118110.0,0.40164692]
[1755180971252,0.01608871,118120.0,118110.0,0.39966692]
[1755180971455,0.01608871,118120.0,118110.0,1.06816295]
[1755180971721,0.01608871,118120.0,118110.0,0.41711594]
[1755180972576,0.01608871,118120.0,118110.0,0.42954045]
[1755180972798,0.01608871,118120.0,118110.0,1.08058746]
[1755180973047,0.01608871,118120.0,118110.0,0.41711594]
[1755180973258,0.01708871,118120.0,118110.0,0.41711594]
[1755180973696,0.01608871,118120.0,118110.0,0.75711594]
[1755180973901,0.01908871,118120.0,118110.0,0.77054045]
[1755180974114,0.01908871,118120.0,118110.0,0.79754045]
[1755180974598,0.01908871,118120.0,118110.0,0.79952045]
[1755180974772,0.01608871,118120.0,118110.0,1.44956746]
[1755180975187,0.01608871,118120.0,118110.0,0.77352045]
[1755180976259,0.0002,118130.0,118110.0,0.77352045]
[1755180976260,0.0002,118130.0,118120.0,0.85023987]
[1755180976472,1e-08,118130.0,118120.0,1.30307312]
[1755180976727,1e-08,118130.0,118120.0,1.34440312]
[1755180977179,1e-08,118130.0,118120.0,1.36239611]
[1755180977526,1e-08,118130.0,118120.0,1.48880312]
[1755180977741,1e-08,118130.0,118120.0,1.49080312]
[1755180977952,1e-08,118130.0,118120.0,0.84275611]
[1755180978366,1e-08,118130.0,118120.0,0.83975611]
[1755180978607,1e-08,118130.0,118120.0,0.84375611]
[1755180979190,1e-08,118130.0,118120.0,0.84175611]
[1755180979570,1e-08,118130.0,118120.0,0.84475611]
[1755180980170,1e-08,118130.0,118120.0,0.87013811]
[1755180981083,1e-08,118130.0,118120.0,0.95925811]
[1755180981204,1e-08,118130.0,118120.0,0.8881311]
[1755180981866,1e-08,118130.0,118120.0,0.89253456]
[1755180982145,1e-08,118130.0,118120.0,1.89253456]
[1755180982392,1e-08,118130.0,118120.0,1.91753456]
[1755180982609,0.0042,118180.0,118120.0,1.91753456]
[1755180982610,1e-08,118180.0,118170.0,0.21169671]
[1755180982825,1e-08,118180.0,118170.0,0.75903672]
[1755180983032,1e-08,118180.0,118170.0,0.66062647]
[1755180983244,1e-08,118180.0,118170.0,0.78263348]
[1755180983455,1e-08,118180.0,118170.0,0.81167348]
[1755180983657,1e-08,118180.0,118170.0,0.66699348]
[1755180984126,0.00307001,118180.0,118170.0,0.81392037]
[1755180984364,0.00307001,118180.0,118170.0,0.67012726]
[1755180984499,0.00307001,118180.0,118170.0,0.62454446]
[1755180984691,0.00307001,118180.0,118170.0,0.76986446]
[1755180984897,0.00407001,118180.0,118170.0,0.76986446]
[1755180985326,0.00407001,118180.0,118170.0,0.77299824]
[1755180985674,0.00100001,118180.0,118170.0,1.46483331]
[1755180985786,1e-08,118180.0,118170.0,1.46483331]
[1755180985994,1e-08,118180.0,118170.0,1.48983331]
[1755180986387,0.16916201,118230.0,118220.0,0.16917611]
[1755180986591,0.86262285,118230.0,118210.0,0.31485806]
[1755180986793,0.86262285,118230.0,118220.0,0.16917611]
[1755180986999,0.04241383,118230.0,118220.0,0.16917611]
[1755180987248,0.82090886,118240.0,118230.0,0.1691618]
[1755180987457,0.25273319,118240.0,118230.0,0.1691618]
[1755180987678,0.25273319,118240.0,118230.0,0.17087712]
[1755180987679,0.00014809,118240.0,118230.0,0.17087712]
[1755180987932,0.00014809,118240.0,118230.0,0.18244913]
[1755180988137,0.0188756,118240.0,118230.0,0.18244913]
[1755180988356,0.0188756,118240.0,118230.0,0.60953041]
[1755180988560,0.0188756,118240.0,118230.0,0.63114779]
[1755180988977,0.0188756,118240.0,118230.0,0.59188505]
[1755180989192,0.0188756,118240.0,118230.0,0.1691618]
[1755180989864,0.0188756,118240.0,118220.0,0.19555111]
[1755180989865,0.18802309,118240.0,118220.0,0.19555111]
[1755180990018,0.8360001,118240.0,118230.0,0.1691618]
[1755180990235,0.8360001,118240.0,118220.0,0.34011111]
[1755180990422,0.8440001,118240.0,118230.0,0.1691618]
[1755180990617,0.0218756,118240.0,118230.0,0.5091618]
[1755180990820,0.0218756,118240.0,118230.0,0.51968882]
[1755180991026,0.0238756,118240.0,118230.0,0.51968882]
[1755180991624,0.0308756,118240.0,118230.0,0.52068882]
[1755180991880,0.0308756,118240.0,118230.0,0.5101618]
[1755180992581,0.0348756,118240.0,118230.0,0.5101618]
[1755180993237,0.0343756,118240.0,118230.0,0.5101618]
[1755180993443,0.68542261,118240.0,118230.0,0.5101618]
[1755180994084,0.67798261,118240.0,118230.0,0.5101618]
[1755180994532,0.8471301,118240.0,118230.0,0.5101618]
[1755180994741,0.8471301,118240.0,118230.0,0.001]
[1755180995590,0.92985335,118240.0,118230.0,0.001]
[1755180996004,0.27880634,118240.0,118230.0,0.001]
[1755180996209,0.92985335,118240.0,118230.0,0.001]
[1755180996813,1.37039099,118240.0,118230.0,0.001]
[1755180997124,1.28790656,118240.0,118230.0,0.001]
[1755180997524,1.28790656,118240.0,118200.0,0.09313155]
[1755180997525,0.16919042,118210.0,118200.0,0.09313155]
[1755180997726,0.16920473,118200.0,118180.0,0.24543622]
[1755180997863,0.82025174,118200.0,118190.0,0.025381]
[1755180998072,0.90297499,118200.0,118190.0,0.025381]
[1755180998275,0.90297499,118200.0,118160.0,0.31529691]
[1755180998276,0.16924412,118180.0,118160.0,0.31529691]
[1755180998486,0.1776999,118190.0,118170.0,0.23700124]
[1755180998691,0.16923337,118180.0,118170.0,0.23700124]
[1755180999033,0.17230337,118180.0,118170.0,0.23749507]
[1755180999237,0.00307,118180.0,118170.0,0.23749507]
[1755181000077,0.17530337,118180.0,118170.0,0.23749507]
[1755181000303,0.17930337,118180.0,118170.0,0.23849507]
[1755181000992,0.01007,118180.0,118170.0,0.23849507]
[1755181001674,0.007,118180.0,118170.0,0.23849507]
[1755181001851,0.007,118180.0,118170.0,0.32426832]
[1755181002068,0.007,118180.0,118170.0,0.68171734]
[1755181002834,0.007,118180.0,118170.0,0.66426832]
[1755181003045,0.17227597,118200.0,118190.0,0.16921905]
[1755181003245,0.00307,118200.0,118190.0,0.16921905]
[1755181003465,0.65411701,118200.0,118190.0,0.16921905]
[1755181003681,0.65411701,118200.0,118190.0,0.19460105]
[1755181003885,0.00307,118200.0,118190.0,0.19460105]
[1755181004106,0.00307,118200.0,118190.0,0.025382]
[1755181004313,0.00307,118200.0,118190.0,0.19671628]
[1755181004512,0.00707,118200.0,118190.0,0.19460105]
[1755181004742,0.17627473,118200.0,118190.0,0.19460105]
[1755181005338,0.004,118200.0,118190.0,0.19460105]
[1755181005534,0.17827473,118200.0,118190.0,0.025382]
[1755181006247,0.19402596,118200.0,118190.0,0.025382]
[1755181006845,0.84507297,118200.0,118190.0,0.025382]
[1755181007089,0.19402596,118200.0,118190.0,0.19460105]
[1755181007325,0.19402596,118200.0,118190.0,0.025382]
[1755181007970,0.19402596,118200.0,118190.0,0.19460105]
[1755181008184,0.19402596,118200.0,118190.0,0.025382]
[1755181008609,0.19402596,118200.0,118190.0,0.19460105]
[1755181008777,0.02175123,118200.0,118190.0,0.19460105]
[1755181009219,0.02175123,118200.0,118190.0,0.2654046]
[1755181009420,0.02175123,118200.0,118190.0,0.34812785]
[1755181010055,0.01975123,118200.0,118190.0,0.35534665]
[1755181010619,0.01675123,118200.0,118190.0,0.35534665]
[1755181010822,0.01775123,118200.0,118190.0,0.35734665]
[1755181011666,0.01775123,118200.0,118190.0,0.2793243]
[1755181011869,0.01775123,118200.0,118190.0,0.2823743]
[1755181012547,0.01775123,118200.0,118190.0,0.28957405]
[1755181012749,0.01775123,118200.0,118190.0,0.6973276]
[1755181014347,0.01775123,118200.0,118190.0,0.62957405]
[1755181015578,0.01775123,118200.0,118190.0,0.62652405]
[1755181016685,0.19002596,118200.0,118190.0,0.512662]
[1755181016905,0.02082123,118200.0,118190.0,0.34188105]
[1755181017080,0.01775123,118200.0,118190.0,0.34188105]
[1755181017319,0.18695596,118200.0,118190.0,0.34188105]
[1755181017538,0.18695596,118200.0,118190.0,0.172662]
[1755181017744,0.19002596,118200.0,118190.0,0.173062]
[1755181017952,0.84107297,118200.0,118190.0,0.173062]
[1755181018389,0.19002596,118200.0,118190.0,0.173062]
[1755181018563,0.84107297,118200.0,118190.0,0.173062]
[1755181019254,0.84107297,118200.0,118190.0,0.027382]
[1755181019462,0.84107297,118200.0,118190.0,0.19660105]
[1755181019679,0.84107297,118200.0,118190.0,0.027382]
[1755181019892,0.19002596,118200.0,118190.0,0.19660105]
[1755181020315,0.19002596,118200.0,118190.0,0.027382]
[1755181021193,0.84107297,118200.0,118190.0,0.027382]
[1755181022030,0.19002596,118200.0,118190.0,0.027382]
[1755181022987,0.19002596,118200.0,118190.0,0.19660105]
[1755181023399,0.19002596,118200.0,118190.0,0.027382]
[1755181023643,0.84107297,118200.0,118190.0,0.027382]
[1755181023814,0.19002596,118200.0,118190.0,0.027382]
[1755181024480,0.19002596,118200.0,118190.0,0.19660105]
[1755181024685,0.19209596,118200.0,118190.0,0.19660105]
[1755181024899,0.19209596,118200.0,118190.0,0.027382]
[1755181025106,0.19209596,118200.0,118190.0,0.19660105]
[1755181025490,0.19109596,118200.0,118190.0,0.19460105]
[1755181025721,0.19012013,118200.0,118190.0,0.025382]
[1755181025930,0.19212013,118200.0,118190.0,0.025382]
[1755181026143,0.19512013,118200.0,118190.0,0.025382]
[1755181026973,0.19512013,118200.0,118190.0,0.19460105]
[1755181027189,0.17934473,118200.0,118190.0,0.19460105]
[1755181027410,0.00707,118200.0,118190.0,0.19656105]
[1755181027877,0.005,118200.0,118190.0,0.19656105]
[1755181028112,0.005,118200.0,118190.0,0.2672846]
[1755181029912,0.005,118200.0,118190.0,0.69000785]
[1755181030387,0.005,118200.0,118190.0,0.6222543]
[1755181030612,0.00712,118200.0,118190.0,0.68272105]
[1755181030824,0.17632473,118200.0,118190.0,0.68272105]
[1755181031036,0.002,118200.0,118190.0,0.68569105]
[1755181031259,0.00412,118200.0,118190.0,0.68272105]
[1755181031497,0.00312,118200.0,118190.0,0.68272105]
[1755181031902,0.00412,118200.0,118190.0,0.68272105]
[1755181032110,0.00412,118200.0,118190.0,0.53656105]
[1755181032373,0.82732174,118200.0,118190.0,0.025382]
[1755181032598,0.82632174,118200.0,118190.0,0.025382]
[1755181032827,0.82732174,118200.0,118190.0,0.025382]
[1755181033048,0.00707,118200.0,118190.0,0.19460105]
[1755181033282,0.00412,118200.0,118190.0,0.19656105]
[1755181034150,0.00707,118200.0,118190.0,0.19460105]
[1755181034365,0.002,118200.0,118190.0,0.19953105]
[1755181035643,0.002,118200.0,118190.0,0.62941552]
[1755181036483,0.002,118200.0,118190.0,0.6222543]
[1755181037360,0.002,118200.0,118190.0,0.62583491]
[1755181037798,0.002,118200.0,118190.0,0.6222543]
[1755181038941,0.79435986,118230.0,118210.0,0.16919042]
[1755181039156,0.00212,118220.0,118210.0,0.31511042]
[1755181039618,0.16923912,118240.0,118230.0,0.1691618]
[1755181039838,0.16922738,118250.0,118240.0,0.16914749]
[1755181040059,0.25407063,118250.0,118240.0,0.16914749]
[1755181040491,0.08484325,118250.0,118240.0,0.16914749]
[1755181040702,0.25692644,118250.0,118230.0,0.3149618]
[1755181040925,0.16914749,118240.0,118230.0,0.3149618]
[1755181041134,0.00212,118240.0,118230.0,0.3149618]
[1755181041560,0.17126749,118240.0,118230.0,0.3149618]
[1755181041834,0.17126749,118240.0,118220.0,0.17763491]
[1755181041835,0.8252645,118240.0,118220.0,0.17763491]
[1755181042045,0.82315881,118230.0,118220.0,0.3149642]
[1755181042249,0.00212,118230.0,118220.0,0.3149642]
[1755181042679,0.1712818,118230.0,118220.0,0.3149642]
[1755181043096,0.00212,118230.0,118220.0,0.3169242]
[1755181043505,0.00212,118230.0,118220.0,0.3422992]
[1755181043715,0.4459,118240.0,118230.0,0.1691618]
[1755181043931,0.4459,118240.0,118230.0,0.1711218]
[1755181044404,0.61416749,118240.0,118230.0,0.1691618]
[1755181044611,1.2652145,118240.0,118230.0,0.1691618]
[1755181044825,1.2681645,118240.0,118220.0,0.3402192]
[1755181045036,1.2721645,118240.0,118220.0,0.3402192]
[1755181045253,0.82020881,118230.0,118220.0,0.1946992]
[1755181045470,0.82232881,118230.0,118220.0,0.3401792]
[1755181045692,0.82527881,118230.0,118220.0,0.1946992]
[1755181046112,0.1742318,118230.0,118220.0,0.1946992]
[1755181046324,0.00212,118230.0,118220.0,0.1946992]
[1755181047380,0.00412,118230.0,118220.0,0.1946992]
[1755181047612,0.00412,118230.0,118220.0,0.1966592]
[1755181047827,0.00712,118230.0,118220.0,0.1966592]
[1755181048290,0.005,118230.0,118220.0,0.26738275]
[1755181048948,0.005,118230.0,118220.0,1.35664203]
[1755181049161,0.005,118230.0,118220.0,1.40856751]
[1755181049365,0.005,118230.0,118220.0,0.7575205]
[1755181049838,0.005,118230.0,118220.0,0.74800502]
[1755181050059,0.16911943,118260.0,118250.0,0.16913319]
[1755181050268,0.16911943,118260.0,118250.0,0.31477319]
[1755181050486,0.82016644,118260.0,118240.0,0.16913512]
[1755181050687,0.82311644,118260.0,118250.0,0.14552]
[1755181050946,0.16913319,118250.0,118240.0,0.31461512]
[1755181051168,0.79947701,118260.0,118250.0,0.16913319]
[1755181051391,0.002,118260.0,118250.0,0.16913319]
[1755181051603,0.005,118260.0,118250.0,0.16913319]
[1755181051808,0.83621793,118270.0,118250.0,0.17210319]
[1755181052032,0.8231159,118260.0,118240.0,0.32307249]
[1755181052242,0.17206889,118260.0,118250.0,0.16913319]
[1755181052477,0.8231159,118260.0,118240.0,0.32307249]
[1755181052679,0.8251302,118250.0,118240.0,0.146]
[1755181052897,0.16914749,118240.0,118230.0,0.66359605]
[1755181053110,0.8201945,118240.0,118230.0,0.17759605]
[1755181053313,0.65104701,118240.0,118230.0,0.3152018]
[1755181053543,0.8281302,118250.0,118230.0,0.3152018]
[1755181053746,0.91085345,118250.0,118230.0,0.3152018]
[1755181053953,0.25980644,118250.0,118230.0,0.3152018]
[1755181054158,0.90585345,118250.0,118240.0,0.16914749]
[1755181054576,0.25480644,118250.0,118240.0,0.16914749]
[1755181054822,0.90585345,118250.0,118230.0,0.3152018]
[1755181055020,0.8201945,118240.0,118230.0,0.3152018]
[1755181055232,0.65399701,118240.0,118230.0,0.3154418]
[1755181055434,0.65104701,118240.0,118230.0,0.3154418]
[1755181055648,0.25580644,118250.0,118240.0,0.16914749]
[1755181055864,0.08372325,118250.0,118240.0,0.16914749]
[1755181056079,0.25385644,118250.0,118230.0,0.3184118]
[1755181056324,0.25385644,118250.0,118240.0,0.16914749]
[1755181056525,0.90490345,118250.0,118240.0,0.16914749]
[1755181056723,0.25385644,118250.0,118240.0,0.16914749]
[1755181056931,0.73577026,118250.0,118240.0,0.16914749]
[1755181057146,0.73775026,118250.0,118240.0,0.17121749]
[1755181057430,0.25383644,118250.0,118240.0,0.17121749]
[1755181057640,0.90488345,118250.0,118240.0,0.17121749]
[1755181057846,0.25383644,118250.0,118240.0,0.17121749]
[1755181058262,0.25683644,118250.0,118240.0,0.17121749]
[1755181058478,0.44988,118250.0,118240.0,0.17121749]
[1755181058718,0.4479,118250.0,118240.0,0.24195104]
[1755181059339,0.005,118250.0,118240.0,0.71441123]
[1755181059546,0.005,118250.0,118240.0,0.73977723]
[1755181060358,0.002,118250.0,118240.0,1.40827326]
[1755181060562,0.002,118250.0,118240.0,0.75722625]
[1755181060749,0.002,118250.0,118240.0,0.89429931]
[1755181060988,0.82012508,118290.0,118270.0,0.16909178]
[1755181061195,0.91040249,118290.0,118280.0,0.16909029]
[1755181061625,0.97809055,118300.0,118290.0,0.16907599]
[1755181061827,0.08596325,118300.0,118290.0,0.16907599]
[1755181062028,0.08292325,118300.0,118290.0,0.16907599]
[1755181062156,0.08307131,118300.0,118290.0,0.17824293]
[1755181062352,0.00034806,118300.0,118290.0,0.32440293]
[1755181062770,0.00534806,118300.0,118290.0,0.32440293]
[1755181062975,0.17440976,118300.0,118290.0,0.31519599]
[1755181063170,0.82849677,118300.0,118290.0,0.31519599]
[1755181063370,0.00534806,118300.0,118290.0,0.16907599]
[1755181063676,0.17440976,118300.0,118290.0,0.16907599]
[1755181064121,0.65139507,118300.0,118290.0,0.16907599]
[1755181064378,0.17340976,118300.0,118290.0,0.17007599]
[1755181064585,0.17908722,118300.0,118290.0,0.17007599]
[1755181064790,0.00804552,118300.0,118290.0,0.17512599]
[1755181065001,0.00404552,118300.0,118290.0,0.17512599]
[1755181065429,0.00704552,118300.0,118290.0,0.24287954]
[1755181065856,0.00704552,118300.0,118290.0,0.24080954]
[1755181066074,0.00704552,118300.0,118290.0,0.24977636]
[1755181066305,0.00704552,118300.0,118290.0,0.67249961]
[1755181066512,0.00704552,118300.0,118290.0,0.67149961]
[1755181066724,0.00304552,118300.0,118290.0,0.68936233]
[1755181066929,0.00704552,118300.0,118290.0,0.68936233]
[1755181067136,0.00304552,118300.0,118290.0,0.74061924]
[1755181067363,0.00304552,118300.0,118290.0,0.51205599]
[1755181067587,0.00304552,118300.0,118290.0,0.65777599]
[1755181067809,0.00404552,118300.0,118290.0,0.65479599]
[1755181068042,0.82115423,118300.0,118290.0,0.31471599]
[1755181068261,0.82419423,118300.0,118280.0,0.34005329]
[1755181068478,0.82619423,118300.0,118290.0,0.16907599]
[1755181068694,0.00304552,118300.0,118290.0,0.16907599]
[1755181068962,0.00104552,118300.0,118290.0,0.16907599]
[1755181069182,0.00104552,118300.0,118290.0,0.17205599]
[1755181070065,0.00104552,118300.0,118290.0,0.31455599]
[1755181070326,4.552e-05,118300.0,118290.0,0.31455599]
[1755181070805,0.17110722,118300.0,118290.0,0.14548]
[1755181071066,0.17110722,118300.0,118290.0,0.31451599]
[1755181071307,0.00204552,118300.0,118290.0,0.31451599]
[1755181071533,0.00304552,118300.0,118290.0,0.31451599]
[1755181072185,0.00204552,118300.0,118290.0,0.31451599]
[1755181072403,0.00404552,118300.0,118290.0,0.31451599]
[1755181072875,0.00404552,118300.0,118290.0,0.31749599]
[1755181073096,0.00204552,118300.0,118290.0,0.31749599]
[1755181073315,0.00504552,118300.0,118290.0,0.31749599]
[1755181073539,0.00504552,118300.0,118290.0,0.31439599]
[1755181073753,0.00504552,118300.0,118290.0,0.31737599]
[1755181073996,0.00304552,118300.0,118290.0,0.31737599]
[1755181074179,4.552e-05,118300.0,118290.0,0.31737599]
[1755181074394,0.00204552,118300.0,118290.0,0.31737599]
[1755181074834,0.00504552,118300.0,118290.0,0.31737599]
[1755181075259,0.00204552,118300.0,118290.0,0.31737599]
[1755181075721,0.00204552,118300.0,118290.0,0.74009924]
[1755181075722,0.00304552,118300.0,118290.0,0.74009924]
[1755181076797,0.00104552,118300.0,118290.0,0.74009924]
[1755181077009,0.00204552,118300.0,118290.0,0.7772241]
[1755181077208,0.00104552,118300.0,118290.0,0.8198641]
[1755181077424,0.00104552,118300.0,118290.0,0.8271662]
[1755181077643,4.552e-05,118300.0,118290.0,0.8208641]
[1755181077859,4.552e-05,118300.0,118290.0,0.82473191]
[1755181078063,4.552e-05,118300.0,118290.0,0.8208641]
[1755181078483,0.0002,118310.0,118300.0,0.52651072]
[1755181078683,1e-08,118310.0,118300.0,0.60923397]
[1755181078888,1e-08,118310.0,118300.0,0.61221397]
[1755181079748,0.00100001,118310.0,118300.0,0.61221397]
[1755181080421,0.00100001,118310.0,118300.0,0.74028495]
[1755181080646,0.00100001,118310.0,118300.0,0.6798547]
[1755181080858,0.01666188,118310.0,118300.0,0.6798547]
[1755181081068,0.01666227,118310.0,118300.0,0.5344147]
[1755181081285,0.01666227,118310.0,118300.0,0.6797747]
[1755181082169,0.01666227,118310.0,118300.0,0.5344147]
[1755181082395,0.01666227,118310.0,118300.0,0.6827547]
[1755181082854,0.01666227,118310.0,118300.0,0.76547795]
[1755181084193,0.01667788,118310.0,118300.0,0.76547795]
[1755181084808,0.00100001,118310.0,118300.0,0.76547795]
[1755181085227,0.01667678,118310.0,118300.0,0.76547795]
[1755181085499,0.00100001,118310.0,118300.0,0.76547795]
[1755181085940,0.00100001,118310.0,118300.0,0.76523795]
[1755181086068,0.00100001,118310.0,118300.0,0.6795347]
[1755181086282,1e-08,118310.0,118300.0,0.6795347]
[1755181086508,1e-08,118310.0,118300.0,0.6827347]
[1755181086671,1e-08,118310.0,118300.0,0.6837347]
[1755181087063,1e-08,118310.0,118300.0,0.6827347]
[1755181087270,1e-08,118310.0,118300.0,1.43395398]
[1755181087475,1e-08,118310.0,118300.0,0.78290697]
[1755181088945,1e-08,118310.0,118300.0,1.43395398]
[1755181089369,1e-08,118310.0,118300.0,0.78290697]
[1755181089579,0.0177943,118330.0,118320.0,0.50903313]
[1755181089781,0.0177943,118330.0,118320.0,0.74095638]
[1755181089988,0.0177943,118330.0,118320.0,0.7449534]
[1755181090213,0.0177943,118330.0,118320.0,0.5989534]
[1755181090419,0.0177943,118330.0,118320.0,0.74091638]
[1755181090623,0.0177943,118330.0,118320.0,0.74851469]
[1755181091051,0.0177943,118330.0,118320.0,0.78608193]
[1755181091482,0.0177943,118330.0,118320.0,0.78708193]
[1755181091766,0.0177943,118330.0,118320.0,0.79107895]
[1755181092180,0.0177943,118330.0,118320.0,0.78708193]
[1755181092435,0.0177943,118330.0,118320.0,0.78688193]
[1755181092646,0.0177943,118330.0,118320.0,0.81223093]
[1755181093077,0.0177943,118330.0,118320.0,0.82967995]
[1755181093284,0.00314,118360.0,118350.0,0.16899028]
[1755181093495,0.01932136,118360.0,118350.0,0.31475028]
[1755181094131,0.01932136,118360.0,118350.0,0.34009728]
[1755181094761,0.02138136,118360.0,118350.0,0.34009728]
[1755181095107,0.02138136,118360.0,118350.0,0.34329728]
[1755181095766,0.02138136,118360.0,118350.0,0.19433728]
[1755181095978,0.02432136,118360.0,118350.0,0.34017728]
[1755181096362,0.02138136,118360.0,118350.0,0.34017728]
[1755181096973,0.02432136,118360.0,118350.0,0.34017728]
[1755181097442,0.10704461,118360.0,118350.0,0.34001728]
[1755181097933,0.02138136,118360.0,118350.0,0.34001728]
[1755181098145,0.02432136,118360.0,118350.0,0.34001728]
[1755181098355,0.75809162,118360.0,118350.0,0.19433728]
[1755181098562,0.75809162,118360.0,118330.0,0.17744572]
[1755181098563,0.16899028,118350.0,118330.0,0.17744572]
[1755181098764,0.01568965,118350.0,118340.0,0.31580456]
[1755181099730,0.01668965,118350.0,118340.0,0.31580456]
[1755181100573,0.01868965,118350.0,118340.0,0.31580456]
[1755181100975,0.01868965,118350.0,118340.0,0.16900456]
[1755181101177,0.1043529,118350.0,118340.0,0.31612456]
[1755181101409,0.92439019,118350.0,118330.0,0.17744572]
[1755181101558,0.92439019,118350.0,118330.0,0.16901884]
[1755181101559,0.90571482,118340.0,118330.0,0.16901884]
[1755181101774,0.92140447,118340.0,118320.0,0.34146413]